Cogmind - Beta 16.1 @@@ ROGUE MODE // 2026.04.06 @ 03:21:02 Player: KURIIRI Result: Destroyed by Y-54 Guardian with Flak Gun Performance ------------- Evolutions (0) 0 Regions Visited (3) 600 Robots Destroyed (37) 185 Value Destroyed (979) 979 Prototype IDs (13) 260 Alien Tech Used (0) 0 Bonus (0) 0 TOTAL SCORE: 2024 Bonus ------- None Cogmind --------- Core Integrity 0/250 Matter 280/300 Energy 200/250 System Corruption 0% Temperature Hot (243) Movement Treading (152) Location -7/Recycling Parts ------- > --- POWER (1) -------- Ion Engine > --- PROPULSION (2) --- Light Treads Advanced Treads > --- UTILITY (2) ------ Large Storage Unit > --- WEAPON (2) ------- Subdweller Beam Cannon Subdweller Beam Cannon > --- INVENTORY (15) --- Light Treads Advanced Treads Advanced Treads Compact Wheel High-capacity Matter Pod (200) Subdweller Optics Scrap Shield Hacking Suite Makeshift System Shield Rainbow Chip Subdweller Laser Subdweller Laser Subdweller Machine Gun Multitool Peak State ------------ > --- POWER ------------ Ion Engine > --- PROPULSION ------- Light Treads Advanced Treads > --- UTILITY ---------- Large Storage Unit > --- WEAPON ----------- Subdweller Beam Cannon Subdweller Beam Cannon > --- INVENTORY -------- Subdweller Power Source Light Treads Light Treads Compact Wheel High-capacity Matter Pod Subdweller Optics Scrap Shield Hacking Suite Makeshift System Shield Rainbow Chip Subdweller Laser Subdweller Laser Subdweller Machine Gun Multitool [Rating: 14] Favorites ----------- Power Ion Engine Engine Ion Engine Propulsion Light Treads Treads Light Treads Leg Aluminum Leg Utility Scrap Shield Device Recalibrator Storage Large Storage Unit Protection Scrap Shield Weapon Subdweller Beam Cannon Energy Gun Subdweller Laser Energy Cannon Subdweller Beam Cannon Ballistic Gun Assault Rifle Build | -11 -10 -10 -7 ------- Run | Yrd Mat Sub Rec Slots Evolved . | . . . . Power . | . . . . Propulsion . | . . . . Utility . | . . . . Weapon . | . . . . Parts Attached 24 | 3 8 11 2 Power . | . . . . Engine . | . . . . Core . | . . . . Reactor . | . . . . Propulsion 5 | 2 . 1 2 Treads 5 | 2 . 1 2 Leg . | . . . . Wheel . | . . . . Hover . | . . . . Flight . | . . . . Utility 7 | . 4 3 . Device 2 | . 1 1 . Storage 2 | . 2 . . Processor . | . . . . Hackware . | . . . . Protection 3 | . 1 2 . Artifact . | . . . . Weapon 12 | 1 4 7 . Energy Gun 6 | . 3 3 . Energy Cannon 3 | . 1 2 . Ballistic Gun 3 | 1 . 2 . Ballistic Cannon . | . . . . Launcher . | . . . . Special Weapon . | . . . . Impact Weapon . | . . . . Slashing Weapon . | . . . . Piercing Weapon . | . . . . Special Melee Weapon . | . . . . Unidentified Prototypes . | . . . . Parts Lost 2 | . . 2 . Power . | . . . . Propulsion . | . . . . Utility 1 | . . 1 . Weapon 1 | . . 1 . Highest Loss Streak 2 | . . 2 . To Critical Strikes . | . . . . Average Backups 8 | 6 8 8 13 Power . | 1 1 . . Propulsion 2 | 4 3 1 3 Utility 3 | . 2 4 6 Weapon 1 | 1 1 1 3 Tool/Special . | . . . . Unused Backups 18 | . 2 6 10 Power 1 | . . . 1 Propulsion 5 | . 1 2 2 Utility 7 | . . 2 5 Weapon 4 | . 1 2 1 Tool/Special 1 | . . . 1 Average Slot Usage (%) 90 | . 95 88 85 Engine 14 | . 14 14 14 Treads 28 | . 28 28 28 Device 1 | . 1 1 . Storage 7 | . 14 5 14 Protection 10 | . 9 10 . Energy Gun 7 | . 7 7 . Energy Cannon 12 | . 3 15 28 Ballistic Gun 8 | . 16 5 . Peak Build Rating 14 | 6 11 13 14 Average Rating 11 | 5 8 12 12 On Entrance 8 | 6 6 11 12 Avg Prop Armor Cover (%) . | . . . . Naked Turns . | . . . . Heaviest Build 41 | 14 34 41 41 Greatest Support 42 | 40 40 40 42 Greatest Overweight (x) 1 | . . 1 1 Average Overweight (x) . | . . . . Largest Inventory Capacity 15 | 8 15 15 15 Average Capacity 8 | 8 9 8 15 Most Carried 15 | 8 13 15 15 Average Carried 8 | 6 8 8 14 Final Capacity 15 | 8 15 15 15 Final Carried 15 | 6 13 15 15 Class Distribution -------------------- 61% | Mutant 38% | Subdweller-Mutant Dominant Class ---------------- Mutant | -10/Materials Subdweller-Mutant | -10/Subcaves Mutant | -7/Recycling Resources | -11 -10 -10 -7 ----------- Run | Yrd Mat Sub Rec Matter Collected 1061 | 250 567 244 . Remotely . | . . . . Salvage Created 1223 | 100 588 535 . Parts 82 | 4 39 39 . Haulers Intercepted 2 | . 2 . . Recyclers Shooed 1 | . 1 . . Parts Field Recycled . | . . . . Retrieved Matter . | . . . . Parts Self-Destructed 10 | . . 10 . Prevented . | . . . . Parts Restored 2 | . . 2 . Broken 2 | . . 2 . Kills | -11 -10 -10 -7 ------- Run | Yrd Mat Sub Rec Combat Hostiles Destroyed 26 | . 11 15 . Guns 21 | . 11 10 . Cannons 5 | . . 5 . Classes Destroyed 12 | 2 7 3 . Worker 1 | . 1 . . Tunneler 2 | 1 1 . . Hauler 2 | . 2 . . Recycler 1 | 1 . . . Mechanic 1 | . 1 . . Operator 1 | . 1 . . Watcher 3 | . 3 . . Swarmer 5 | . 3 2 . Grunt 9 | . 8 1 . Sentry 1 | . . 1 . Artisan 2 | . . 2 . Subdweller 11 | . . 11 . Best Kill Streak 3 | 2 3 2 . Combat Bots Only 3 | . 3 2 . Max Kills in Single Turn 1 | 1 1 1 . Gunslinging . | . . . . Exploded . | . . . . Melee . | . . . . Uniques/NPCs Destroyed . | . . . . Combat | -11 -10 -10 -7 -------- Run | Yrd Mat Sub Rec Hostile Shots Fired 135 | . 49 68 18 Missed 46 | . 21 16 9 Hits 89 | . 28 52 9 Projectile 89 | . 28 52 9 Damage Taken 1392 | . 325 1011 56 Core 255 | . 44 187 24 Absorbed by Shields . | . . . . Regen/Repaired (Parts) 73 | . 73 . . Core Remaining (%) 100 | 100 . . . Volleys Fired 182 | 5 65 109 3 Largest 2 | 2 2 2 2 Hottest 160 | 40 130 160 160 Shots Fired 337 | 10 130 191 6 Gun 258 | 10 127 121 . Cannon 79 | . 3 70 6 Launcher . | . . . . Special . | . . . . Kinetic 154 | 10 97 47 . Thermal 183 | . 33 144 6 Explosive . | . . . . Electromagnetic . | . . . . Robot Hit Streak 49 | 4 15 49 1 Robot Miss Streak 6 | 2 6 3 3 Penetration Max . | . . . . Secondary Targets 1 | . 1 . . Max Gunslinging Chain 1 | . 1 . . Shots Hit Robots 172 | 6 75 89 2 Core Hits 74 | 4 40 29 1 Critical Kills . | . . . . Critical Parts Destroyed . | . . . . Critical Strikes 1 | . 1 . . Burn 1 | . 1 . . Melee Attacks . | . . . . Impact . | . . . . Slashing . | . . . . Piercing . | . . . . Sneak Attacks . | . . . . Combat Hostiles . | . . . . Follow-up Attacks . | . . . . Damage Inflicted 3109 | 61 1105 1890 53 Guns 2498 | 61 1045 1392 . Cannons 604 | . 53 498 53 Explosions . | . . . . Melee . | . . . . Ramming 7 | . 7 . . Kinetic 1412 | 61 734 617 . Thermal 1690 | . 364 1273 53 Explosive . | . . . . Electromagnetic . | . . . . Impact . | . . . . Slashing . | . . . . Piercing . | . . . . Highest Corruption . | . . . . Average Corruption . | . . . . Corruption Purged . | . . . . Corruption Blocked . | . . . . Overload Shots . | . . . . Overflow Damage . | . . . . Projectiles . | . . . . Explosions . | . . . . Melee . | . . . . Knockbacks . | . . . . Impact . | . . . . Kinetic . | . . . . Secondary . | . . . . Self-Inflicted Damage . | . . . . Shots . | . . . . Rammed 5 | 1 4 . . Targets Rammed 5 | 1 4 . . Kicked . | . . . . Crushed . | . . . . Highest Temperature 273 | . 273 273 237 Average Temperature 74 | . 70 75 136 Received Heat Transfer 309 | . 111 186 12 Effects 1 | . 1 . . Interference 1 | . 1 . . Siege Activations . | . . . . Martial Activations . | . . . . Shielding Activations . | . . . . Robots Disrupted . | . . . . Combat Hostiles . | . . . . Robots Corrupted . | . . . . Combat Hostiles . | . . . . Parts Fried . | . . . . Impact Corruptions . | . . . . Robots Melted . | . . . . Combat Hostiles . | . . . . Parts Melted 3 | . 2 1 . Heat Transferred 2521 | . 821 1626 74 Parts Sabotaged . | . . . . Parts Stolen . | . . . . Parts Stripped . | . . . . Power Chain Reactions . | . . . . Alert | -11 -10 -10 -7 ------- Run | Yrd Mat Sub Rec Maximum Alert Level . | . . . . Low Security (%) 100 | 100 100 . 100 Level 1 . | . . . . Level 2 . | . . . . Level 3 . | . . . . Level 4 . | . . . . Level 5 . | . . . . High Security . | . . . . Max Security . | . . . . Peak Influence 113 | 10 113 . 45 Initial 45 | . . . 45 Average 32 | 2 33 . 35 Influence Increases 639 | 10 441 185 3 Destroy 0b10 Robot/C 300 | . 220 80 . Destroy 0b10 Robot/NC 55 | 10 45 . . Destroy Leader 60 | . 60 . . Successful Hack 24 | . 24 . . Select Force Hacks 30 | . 30 . . Disable Machine 15 | . 15 . . Destroy Structure 5 | . 2 . 3 Partial Spotted 15 | . 15 . . Lose Combat Pursuer 135 | . 30 105 . Influence Decreases 611 | 10 410 121 70 Entered New Map 65 | . . 15 50 Time Decay 546 | 10 410 106 20 Squads Dispatched 2 | . 2 . . Investigation 2 | . 2 . . Extermination . | . . . . Reinforcement . | . . . . Assault . | . . . . Garrison . | . . . . Intercept . | . . . . Searches Triggered . | . . . . Construction Impeded . | . . . . Haulers Reinforced . | . . . . Active Scanning Responses . | . . . . Cargo Convoy Interrupts . | . . . . Stealth | -11 -10 -10 -7 --------- Run | Yrd Mat Sub Rec Distress Signals 1 | . 1 . . Communications Jammed . | . . . . Distress Signals . | . . . . Times Spotted 41 | . 20 20 1 Peak Tracking Total 4 | . 4 3 1 Tactical Retreats 4 | . 1 3 . Traps | -11 -10 -10 -7 ------- Run | Yrd Mat Sub Rec Traps Triggered 1 | . 1 . . Indirectly . | . . . . Trap Hack Attempts . | . . . . Triggered . | . . . . Disarmed . | . . . . Reprogrammed . | . . . . Reused . | . . . . Traps Extracted . | . . . . Installed . | . . . . Triggered . | . . . . Machines | -11 -10 -10 -7 ---------- Run | Yrd Mat Sub Rec Machines Disabled 2 | . 1 1 . Max in Single Turn 1 | . 1 1 . Machines Repaired . | . . . . Machines Dismantled . | . . . . Machines Sabotaged . | . . . . Overloaded Fab Kills . | . . . . Hacking | -11 -10 -10 -7 --------- Run | Yrd Mat Sub Rec Machines Accessed 11 | . 8 3 . Terminals 6 | . 6 . . Fabricators . | . . . . Repair Stations 1 | . 1 . . Recycling Units 1 | . 1 . . Scanalyzers . | . . . . Garrison Access . | . . . . Total Hacks 28 | . 23 5 . Successful 18 | . 13 5 . Failed 10 | . 10 . . Catastrophic 1 | . 1 . . Database Lockouts . | . . . . Manual 21 | . 21 . . Terminals 20 | . 20 . . Fabricators . | . . . . Repair Stations 2 | . 2 . . Recycling Units 1 | . 1 . . Scanalyzers . | . . . . Garrison Access . | . . . . Terminal Hacks 6 | . 1 5 . Record 3 | . . 3 . Robot Analysis 1 | . 1 . . Open Door 1 | . . 1 . Proto ID Catalog 1 | . . 1 . Fabricator Hacks . | . . . . Repair Station Hacks 2 | . 2 . . Scan Component 1 | . 1 . . Repair 1 | . 1 . . Recycling Unit Hacks . | . . . . Scanalyzer . | . . . . Garrison Access Hacks . | . . . . Unauthorized Hacks 10 | . 10 . . Terminals 9 | . 9 . . Botnet 2 | . 2 . . Operators 2 | . 2 . . Skim 5 | . 5 . . Fabricators . | . . . . Repair Stations . | . . . . Recycling Units 1 | . 1 . . Tunnel 1 | . 1 . . Scanalyzers . | . . . . Garrison Access . | . . . . Data Cores Recovered 1 | . 1 . . Used . | . . . . Hacking Detections 6 | . 6 . . Full Trace Events 1 | . 1 . . Feedback Events . | . . . . Feedback Blocked . | . . . . Robot Schematics Acquired . | . . . . Robots Built . | . . . . Authchips . | . . . . Time . | . . . . Total Robot Build Rating . | . . . . Part Schematics Acquired . | . . . . Parts Built . | . . . . Authchips . | . . . . Time . | . . . . Total Part Build Rating . | . . . . Part Studies Acquired . | . . . . Parts Repaired 1 | . 1 . . Time 26 | . 26 . . Parts Recycled . | . . . . Recycled Matter . | . . . . Retrieved Matter . | . . . . Retrieved Components . | . . . . Parts Scanalyzed . | . . . . Part Schematics Acquired . | . . . . Parts Damaged . | . . . . Bothacking | -11 -10 -10 -7 ------------ Run | Yrd Mat Sub Rec Used RIF Installer . | . . . . Robots Hacked . | . . . . Non-combat . | . . . . Combat . | . . . . Robot Hacks Applied . | . . . . Relay Couplers Released . | . . . . Fabnet Peak Effective % . | . . . . Robots Rewired . | . . . . Allies Hacked . | . . . . Hacks Repelled . | . . . . Allies | -11 -10 -10 -7 -------- Run | Yrd Mat Sub Rec Total Allies . | . . . . Largest Group . | . . . . Highest-Rated Group . | . . . . Highest-Rated Ally . | . . . . Total Orders . | . . . . Ally Attacks . | . . . . Total Damage . | . . . . Kills . | . . . . Allies Corrupted . | . . . . Allies Melted . | . . . . Intel | -11 -10 -10 -7 ------- Run | Yrd Mat Sub Rec Active Infowar (turns) 138 | . 138 . . Seismic 138 | . 138 . . Robot Analysis Total 1 | . 1 . . Derelict Logs Recovered 2 | . . 2 . Drone Launches . | . . . . Drone Recoveries . | . . . . Exploration | -11 -10 -10 -7 ------------- Run | Yrd Mat Sub Rec Turns Passed 6137 | 52 1709 4317 59 Spaces Moved 2965 | 24 873 2048 20 Core . | . . . . Treads 2946 | 5 873 2048 20 Legs 19 | 19 . . . Wheels . | . . . . Hover . | . . . . Flight . | . . . . Fastest Speed 120 | 120 160 160 152 Average Speed 166 | 128 160 170 204 Slowest Speed 240 | 160 160 240 240 Overloaded Moves . | . . . . Propulsion Burnouts . | . . . . Robots Hopped . | . . . . Potential Cave-ins . | . . . . Cave-ins Triggered . | . . . . Exploration Rate (%) 45 | 3 97 76 6 Regions Visited 3 Branch Regions 2 Pre-discovered Areas 4 | . 2 2 . Known Exits Taken 2 | . 1 1 . Unknown Exits Taken 1 | 1 . . . Scrap Searched 9 | . . 9 . Spaces Dug 11 | . . 11 . Terrain Destroyed 44 | . . 41 3 Melee . | . . . . Projectile 44 | . . 41 3 AOE . | . . . . Terrain Rammed . | . . . . Walls Destroyed . | . . . . Machines Disabled . | . . . . Actions | -11 -10 -10 -7 --------- Run | Yrd Mat Sub Rec Total 3819 | 36 1056 2692 35 Wait 572 | . 81 485 6 Move 2963 | 24 872 2047 20 Hop . | . . . . Pick Up 32 | 2 12 17 1 Fast Attach 15 | . 8 7 . Attach 5 | 2 . 3 . Detach 2 | . 1 1 . Swap 9 | 1 1 5 2 Drop 30 | 2 12 13 3 Fire 182 | 5 65 109 3 Melee . | . . . . Ram . | . . . . Kick . | . . . . Crush 4 | . 4 . . Escape Stasis . | . . . . Rewire . | . . . . Trap . | . . . . Miscellaneous 5 | . . 5 . Route ------- -11/Scrapyard -10/Materials (discovered 6 exits: [*Mat x3] / [*Min x2] / *Sub) -10/Subcaves (discovered 3 exits: *Mat x2 / *Rec) -7/Recycling History --------- Turn | Location | Event 16 | -11/Scrapyard | Discovered new exit (range 3) 53 | -11/Scrapyard | Entered Materials 270 | -10/Materials | Discovered new exit (range 16) 300 | -10/Materials | Build established: Mutant 503 | -10/Materials | Discovered new exit (range 15) 859 | -10/Materials | Discovered new exit (range 7) 1008 | -10/Materials | Discovered new exit (range 11) 1032 | -10/Materials | Discovered new exit (range 13) 1328 | -10/Materials | Repaired Lgt. Armor Plating 1642 | -10/Materials | Identified exit to Subcaves 1694 | -10/Materials | Learned 4 Subcaves zone layouts 1737 | -10/Materials | Learned location of Mines (-10) 1762 | -10/Materials | Entered Subcaves 1763 | -10/Subcaves | Approached by a straggling Scientist 1851 | -10/Subcaves | Visited 4L-MR0's lab 1871 | -10/Subcaves | Found Rainbow Chip 1958 | -10/Subcaves | Discovered new exit (range 7) 2032 | -10/Subcaves | Disturbed a concealed Subdweller 2090 | -10/Subcaves | Shifting Twisted Machinery released Sub. Monowheel 2092 | -10/Subcaves | Shifting Twisted Machinery released Sub. Laser 2186 | -10/Subcaves | Core integrity fell below 50% 2648 | -10/Subcaves | Ambushed by angry Subdweller bent on revenge 2682 | -10/Subcaves | Core integrity fell below 20% 2993 | -10/Subcaves | Build established: Subdweller-Mutant 3269 | -10/Subcaves | Learned location of Zion (-6) 3269 | -10/Subcaves | Met a Zionite searching for "candidates" 3329 | -10/Subcaves | Learned Materials garrison access intel 3335 | -10/Subcaves | Learned location of Storage (-7) 3448 | -10/Subcaves | Visited Clippyterm 3453 | -10/Subcaves | Identified exit to Materials 3453 | -10/Subcaves | Identified exit to Recycling 3758 | -10/Subcaves | Shifting Twisted Machinery released Sub. Beam Cannon 3763 | -10/Subcaves | Shifting Twisted Machinery released Piercing Trap 4412 | -10/Subcaves | Build established: Mutant 4843 | -10/Subcaves | Build established: Subdweller-Mutant 4918 | -10/Subcaves | Shifting Twisted Machinery released Piercing Trap 5758 | -10/Subcaves | Build established: Mutant 6079 | -10/Subcaves | Entered Recycling 6138 | -7/Recycling | Destroyed by Y-54 Guardian with Flak Gun Last Messages --------------- 05488_ Acquired 10 matter. 05498_ Acquired Sub. Power Source. 05605_ Acquired Sub. Optics. 05656_ Acquired Sub. Laser. 05928_ Subatomizers dissect the Sub. Power Source. 05938_ Subatomizers dissect the Sub. Power Source, destroying it. 06017_ Dropped Recalibrator. 06018_ Acquired Sub. Laser. LOCATION=RECYCLING GOAL=ESCAPE 06109_ Dropped Lgt. Treads. 06113_ R-06 Scavenger collects Lgt. Treads. 06115_ Dropped Sub. Power Source. 06116_ Acquired Broken Adv. Treads. 06117_ R-06 Scavenger collects Lgt. Treads. 06121_ R-06 Scavenger collects Sub. Power Source. 06132_ Y-54 Guardian springs to life. Map ----- +----------------------------------------------------+ | ?????????????????????????????? | | ?????????????????????????????? | | ?????????????????????????????? | | ?????????????????????????????? | | ?????????????????????????????? | | ?????????????????????????????? | | ?????????????????????????????? | | ?????????????????????????????? | | ?????????????????????????????? | | ?????????????????????????????? | | ?????????????????????????????? | | ?????????????????????????????? | | ?????????????????????????????? | | ????#####????????????????????? | | ????# #??########??????????? | | ????# #? #??????????? | | ????# #?! #??????????? | | ????# # #??????????? | | ????# # #??????????? | | ????# + #??????????? | | ????# #=!/ #??????????? | | ????# #! /* #??????????? | | ????# #? / ! #??????????? | | ????# ###########??????????? | | ????# #??????????????????? | | ????#@ #??????????????????? | | ????# #??????????????????? | | ????# ###??????????????????? | | ????# #????????????????????? | | ????# ;????????????????????? | | ????# Y;#???????????????????? | | ????# r ##???????????????????? | | ????# ????????????????????? | | ????# #????????????????????? | | ????# #????????????????????? | | ????# ;????????????????????? | | ????# #????????????????????? | | ????# #????????????????????? | | ????# #????????????????????? | | ????# #????????????????????? | | ????? ?????????????????????? | | ?????????????????????????????? | | ?????????????????????????????? | | ?????????????????????????????? | | ?????????????????????????????? | | ?????????????????????????????? | | ?????????????????????????????? | | ?????????????????????????????? | | ?????????????????????????????? | | ?????????????????????????????? | +----------------------------------------------------+ Best States ------------- Heat Dissipation 25 Energy Generation 10 Energy Capacity 250 Matter Stores 300 Matter Capacity 300 Sight Range 16 Terrain Scan Density 10 Armor Coverage 800 Evasion (%) 55 Recoil Reduction 2 Item Schematics ----------------- None Robot Schematics ------------------ None Fabricated ------------ Nothing Repaired ---------- Lgt. Armor Plating | 18% | -10/Materials Studied --------- None Alien Tech Used ----------------- None Achievements -------------- None Challenges ------------ None Game ------ Seed LightpackStorageRegenerator Manual? 0 Play Time 00:25:05 Cumulative 390.4 hours Start 2026.04.05 @ 22:01:49 End 2026.04.06 @ 03:21:02 Sessions 3 Manual Loads 0 Difficulty Rogue Special Mode None Game No. 333 Rogue 297 Adventurer 36 Explorer 0 Win Type - Total 5 Types 2/0/0/1/0/0/0/2/0/0 Lore% 74 Gallery% 66 Achievement% 55 Wizard Run 0 Options --------- Layout 1 ASCII 0 Keyboard 0 Movement Numpad Keybinds 0 Fullscreen 1 Font 48/Smallcaps Map View 50x35 Zoom Use 0% Tactical HUD 1 Map Filters NONE Filters NONE Steam 1 RUN: 68ce2fca-9cd1-4467-861e-d2996096ec7b